bitfinex/quotes_BTCUSD_20250601
["timestamp","ask_amount","ask_price","bid_price","bid_amount"]
[1748793982630,1.12593058,104890.0,104880.0,0.0133242]
[1748793982852,1.12593058,104890.0,104880.0,0.02002261]
[1748793983209,1.12593058,104890.0,104880.0,0.02240598]
[1748793983452,1.12593058,104890.0,104880.0,0.0224073]
[1748793983825,1.12593058,104890.0,104880.0,0.02002428]
[1748793984254,1.12593058,104890.0,104880.0,0.02002429]
[1748793984454,1.12593058,104890.0,104880.0,0.01574556]
[1748793984657,1.12593058,104890.0,104880.0,0.02241078]
[1748793985021,1.12593058,104890.0,104880.0,0.0224088]
[1748793985254,1.12593058,104890.0,104880.0,0.01574556]
[1748793985464,1.12593058,104890.0,104880.0,0.02241299]
[1748793985660,1.12593058,104890.0,104880.0,0.02241294]
[1748793985861,1.12593058,104890.0,104880.0,0.02241296]
[1748793986067,1.12593058,104890.0,104880.0,0.01574556]
[1748793986270,1.12593058,104890.0,104880.0,0.02241294]
[1748793986391,1.12593058,104890.0,104880.0,0.01574556]
[1748793986807,1.12593058,104890.0,104880.0,0.02241294]
[1748793987007,1.12593058,104890.0,104880.0,0.02241293]
[1748793987425,1.12593058,104890.0,104880.0,0.02241601]
[1748793987865,1.12593058,104890.0,104880.0,0.02241607]
[1748793988076,1.12593058,104890.0,104880.0,0.02241608]
[1748793988506,1.12665058,104890.0,104880.0,0.02241608]
[1748793988717,1.11301058,104890.0,104880.0,0.02241608]
[1748793989174,1.11301058,104890.0,104880.0,0.02241695]
[1748793989883,1.11301058,104890.0,104880.0,0.01574844]
[1748793990082,1.11301058,104890.0,104880.0,0.02241716]
[1748793990296,1.11301058,104890.0,104880.0,0.23218041]
[1748793990297,0.73940401,104890.0,104880.0,0.23218041]
[1748793990438,0.73940401,104890.0,104880.0,0.2393312]
[1748793990439,1.05617726,104890.0,104880.0,0.2393312]
[1748793990637,1.06571105,104890.0,104880.0,0.23266248]
[1748793990839,1.06571105,104890.0,104880.0,0.24886525]
[1748793990840,0.02406622,104890.0,104880.0,0.24886525]
[1748793991232,0.02859965,104890.0,104880.0,0.28453008]
[1748793991508,0.04113326,104890.0,104880.0,0.27966554]
[1748793991767,0.02206622,104890.0,104880.0,0.27966584]
[1748793992010,0.02206622,104890.0,104880.0,0.28453004]
[1748793992212,0.02206622,104890.0,104880.0,0.28453]
[1748793992419,0.003,104890.0,104880.0,0.81668213]
[1748793992626,0.01253307,104890.0,104880.0,0.81303063]
[1748793992808,0.02206632,104890.0,104880.0,0.81303171]
[1748793993055,0.02206632,104890.0,104880.0,0.81303169]
[1748793993261,0.02206632,104890.0,104880.0,0.84335255]
[1748793993471,0.02206632,104890.0,104880.0,0.84335359]
[1748793993669,0.02206632,104890.0,104880.0,0.4070556]
[1748793993875,0.03159966,104890.0,104880.0,0.40038543]
[1748793994054,0.03159966,104890.0,104880.0,0.40705458]
[1748793994619,0.04113318,104890.0,104880.0,0.40705458]
[1748793994839,0.05066679,104890.0,104880.0,0.40705534]
[1748793995006,0.04113318,104890.0,104880.0,0.40705537]
[1748793995374,0.04113318,104890.0,104880.0,0.40038543]
[1748793995785,0.03159966,104890.0,104880.0,0.40705765]
[1748793995990,0.03159966,104890.0,104880.0,0.40038543]
[1748793996194,0.003,104890.0,104880.0,0.84335548]
[1748793996407,0.003,104890.0,104880.0,0.86696439]
[1748793996684,0.003,104890.0,104880.0,0.80817008]
[1748793996906,0.003,104890.0,104880.0,1.14817008]
[1748793997105,0.00975216,104900.0,104890.0,0.24967623]
[1748793997265,0.00975216,104900.0,104890.0,1.10357436]
[1748793997266,0.00022,104900.0,104890.0,1.10357436]
[1748793997482,0.00022,104900.0,104890.0,1.10364652]
[1748793997810,0.00022,104900.0,104890.0,1.09878111]
[1748793998008,0.0192845,104900.0,104890.0,0.72124708]
[1748793998223,0.0192845,104900.0,104890.0,0.41887216]
[1748793998224,0.0212845,104900.0,104890.0,0.41887216]
[1748793998426,0.03081702,104900.0,104890.0,0.6978186]
[1748793998635,0.02881702,104900.0,104890.0,0.6978186]
[1748793998841,0.00975216,104900.0,104890.0,0.6980986]
[1748793999051,0.00975216,104900.0,104890.0,0.72756939]
[1748793999264,0.00022,104900.0,104890.0,0.73630904]
[1748793999479,0.00975216,104900.0,104890.0,0.73630995]
[1748793999689,0.00975216,104900.0,104890.0,0.72964939]
[1748793999894,0.0192845,104900.0,104890.0,0.73631018]
[1748794000311,0.02881693,104900.0,104890.0,0.42867018]
[1748794000528,0.02881693,104900.0,104890.0,0.73631018]
[1748794000771,0.00975216,104900.0,104890.0,0.72960939]
[1748794000992,0.00975216,104900.0,104890.0,0.73630821]
[1748794001196,0.0192845,104900.0,104890.0,0.73630822]
[1748794002751,0.0192845,104900.0,104890.0,0.73630589]
[1748794003045,0.0192845,104900.0,104890.0,0.73630638]
[1748794003273,0.00975216,104900.0,104890.0,1.16594739]
[1748794003517,0.01928459,104900.0,104890.0,1.16594739]
[1748794003748,0.01928459,104900.0,104890.0,1.1726043]
[1748794003974,0.01928459,104900.0,104890.0,1.17260347]
[1748794004380,0.0192845,104900.0,104890.0,1.17260347]
[1748794004669,0.02881702,104900.0,104890.0,1.17260347]
[1748794004928,0.03834972,104900.0,104890.0,1.16339751]
[1748794005142,0.02881702,104900.0,104890.0,1.16339751]
[1748794005376,0.03834972,104900.0,104890.0,1.16339751]
[1748794005622,0.0192845,104900.0,104890.0,1.17959762]
[1748794005867,0.0192845,104900.0,104890.0,1.1795972]
[1748794006103,0.03834972,104900.0,104890.0,1.17959707]
[1748794006345,0.02881702,104900.0,104890.0,1.18625192]
[1748794007142,0.02881702,104900.0,104890.0,0.13231335]
[1748794007143,0.22524325,104900.0,104890.0,0.13231335]
[1748794007145,0.3517384,104900.0,104890.0,0.03646015]
[1748794007373,0.6592584,104900.0,104890.0,0.02615956]
[1748794007609,0.9992584,104900.0,104890.0,0.02615956]
[1748794007838,1.09176962,104900.0,104890.0,0.02310974]
[1748794008080,1.00422747,104900.0,104890.0,0.02210974]
[1748794008807,1.00422747,104900.0,104890.0,0.02010974]
[1748794009298,1.00422747,104900.0,104890.0,0.02310974]
[1748794009543,1.00422747,104900.0,104890.0,0.02210974]
[1748794009755,1.00522747,104900.0,104890.0,0.02010974]
[1748794010168,1.00622747,104900.0,104890.0,0.02010974]
[1748794012021,6.07573262,104900.0,104890.0,0.02010974]
[1748794013345,6.13473262,104900.0,104890.0,0.02010974]
[1748794013559,6.13573262,104900.0,104890.0,0.02010974]
[1748794013943,6.13673262,104900.0,104890.0,0.02010974]
[1748794014192,6.13473262,104900.0,104890.0,0.02010974]
[1748794015519,6.13873262,104900.0,104890.0,0.02010974]
[1748794015768,5.83121262,104900.0,104890.0,0.02010974]
[1748794015976,6.13825262,104900.0,104890.0,0.02010974]
[1748794017688,6.15836262,104900.0,104890.0,0.02010974]
[1748794018145,1.09350177,104900.0,104890.0,0.02010974]
[1748794019308,6.15804262,104900.0,104890.0,0.02010974]
[1748794020703,5.85132262,104900.0,104890.0,0.02010974]
[1748794020919,1.16666747,104900.0,104890.0,0.02010974]
[1748794021538,0.86034747,104900.0,104890.0,0.02010974]
[1748794021745,1.16666747,104900.0,104890.0,0.02010974]
[1748794021955,0.86034747,104900.0,104890.0,0.02010974]
[1748794022434,0.8054784,104900.0,104890.0,0.02010974]
[1748794023150,0.8004784,104900.0,104890.0,0.02010974]
[1748794023386,0.8023184,104900.0,104890.0,0.02010974]
[1748794024265,1.16248745,104900.0,104890.0,0.02010974]
[1748794024488,6.21448745,104900.0,104890.0,0.02010974]
[1748794027255,5.80980745,104900.0,104890.0,0.02010974]
[1748794027468,6.21444745,104900.0,104890.0,0.02010974]
[1748794028406,6.23337348,104900.0,104890.0,0.02010974]
[1748794030107,6.26200648,104900.0,104890.0,0.02010974]
[1748794035118,6.26200648,104900.0,104890.0,0.01172997]
[1748794035524,5.6372504,104890.0,104880.0,0.00666378]
[1748794035699,5.7331047,104890.0,104880.0,0.00666378]
[1748794038025,5.7391047,104890.0,104880.0,0.00666378]
[1748794039289,5.7391047,104890.0,104880.0,0.00680369]
[1748794040412,5.83161592,104890.0,104880.0,0.00680369]
[1748794040626,5.7391047,104890.0,104880.0,0.00680369]
[1748794041246,6.0433847,104890.0,104880.0,0.00680369]
[1748794041690,6.4553047,104890.0,104880.0,0.00680369]
[1748794042100,6.1510247,104890.0,104880.0,0.00680369]
[1748794042301,6.5518247,104890.0,104880.0,0.00680369]
[1748794043005,6.61644098,104890.0,104880.0,0.00680369]
[1748794043863,6.62644098,104890.0,104880.0,0.00680369]
[1748794044299,7.16904098,104890.0,104880.0,0.00680369]
[1748794045348,7.16604098,104890.0,104880.0,0.00680369]
[1748794045551,7.17004098,104890.0,104880.0,0.00680369]
[1748794045798,6.63008385,104890.0,104880.0,0.00680369]
[1748794046034,7.03048385,104890.0,104880.0,0.00680369]
[1748794046276,7.0420247,104890.0,104880.0,0.00680369]
[1748794046525,7.0460247,104890.0,104880.0,0.00680369]
[1748794047913,6.6456247,104890.0,104880.0,0.00680369]
[1748794048392,7.13877592,104890.0,104880.0,0.00680369]
[1748794049684,7.17095823,104890.0,104880.0,0.00680369]
[1748794049858,7.20454966,104890.0,104880.0,0.00680369]
[1748794051170,7.11203844,104890.0,104880.0,0.00680369]
[1748794051378,6.71139844,104890.0,104880.0,0.00680369]
[1748794051603,7.11163844,104890.0,104880.0,0.00680369]
[1748794051815,6.80807844,104890.0,104880.0,0.00680369]
[1748794052231,7.0458247,104890.0,104880.0,0.00680369]
[1748794052648,7.11164336,104890.0,104880.0,0.00680369]
[1748794053513,7.20415458,104890.0,104880.0,0.00680369]
[1748794053724,7.11164336,104890.0,104880.0,0.00680369]
[1748794056353,7.0458247,104890.0,104880.0,0.00680369]
[1748794058817,7.1117459,104890.0,104880.0,0.00680369]
[1748794060317,7.1106659,104890.0,104880.0,0.00680369]
[1748794060718,6.7115459,104890.0,104880.0,0.00680369]
[1748794060922,7.1105859,104890.0,104880.0,0.00680369]
[1748794062509,7.1392229,104890.0,104880.0,0.00680369]
[1748794062710,6.78982205,104890.0,104880.0,0.00680369]
[1748794062921,7.02594085,104890.0,104880.0,0.00680369]
[1748794063122,7.0404817,104890.0,104880.0,0.00680369]
[1748794063971,7.0404817,104890.0,104880.0,0.0066826]
[1748794065010,6.7384417,104890.0,104880.0,0.0066826]
[1748794065218,7.0405217,104890.0,104880.0,0.0066826]
[1748794066454,7.0557217,104890.0,104880.0,0.0066826]
[1748794067297,7.16343292,104890.0,104880.0,0.0066826]
[1748794067704,7.22935778,104890.0,104880.0,0.0066826]
[1748794067949,7.13684656,104890.0,104880.0,0.0066826]
[1748794068950,7.12164656,104890.0,104880.0,0.0066826]
[1748794069151,7.0557217,104890.0,104880.0,0.0066826]
[1748794069354,7.12166043,104890.0,104880.0,0.0066826]
[1748794069553,7.12167863,104890.0,104880.0,0.0066826]
[1748794070631,7.13687863,104890.0,104880.0,0.0066826]
[1748794070834,7.22938985,104890.0,104880.0,0.0066826]
[1748794073978,7.22942384,104890.0,104880.0,0.0066826]
[1748794074565,7.32992384,104890.0,104880.0,0.0066826]
[1748794074774,7.22942384,104890.0,104880.0,0.0066826]
[1748794076683,0.22434375,104860.0,104850.0,0.1095058]
[1748794076892,0.41515805,104860.0,104850.0,0.10999268]
[1748794077797,0.42495084,104860.0,104850.0,0.11099268]
[1748794077997,0.42468544,104860.0,104850.0,0.11099268]
[1748794078223,0.72532544,104860.0,104850.0,0.11199273]
[1748794081223,0.72532544,104860.0,104850.0,0.03563864]
[1748794084397,0.72452544,104860.0,104850.0,0.03563864]
[1748794085459,0.42468544,104860.0,104850.0,0.03563868]
[1748794085664,0.72440544,104860.0,104850.0,0.03563868]
[1748794085917,0.32972544,104860.0,104850.0,0.03563868]
[1748794086140,0.72436544,104860.0,104850.0,0.03563868]
[1748794086570,0.72432544,104860.0,104850.0,0.03563868]
[1748794086826,0.22163195,104900.0,104890.0,0.02860029]
[1748794086827,0.01204816,104900.0,104890.0,0.02860029]
[1748794087066,0.04397611,104960.0,104950.0,0.21995087]
[1748794087300,0.04397611,104960.0,104950.0,0.96913182]
[1748794087301,0.0001,104960.0,104950.0,0.96913182]
[1748794087542,0.0001,104960.0,104950.0,1.160559]
[1748794087543,0.0179536,104960.0,104950.0,1.160559]
[1748794087774,0.0348118,104990.0,104980.0,0.02857577]
[1748794088031,0.02972417,104990.0,104980.0,0.87974343]
[1748794088263,0.02972417,104990.0,104980.0,1.09944503]
[1748794088552,0.02972417,104990.0,104980.0,1.09461097]
[1748794088787,0.02972417,104990.0,104980.0,1.41069097]
[1748794089255,0.0001,105010.0,104990.0,0.21906738]
[1748794089493,0.1904744,105050.0,105030.0,0.19042178]
[1748794089494,0.440397,105050.0,105030.0,0.19042178]
[1748794089728,0.12231936,105040.0,105030.0,0.19706778]
[1748794089971,0.20944347,105040.0,105030.0,0.006646]
[1748794090205,0.64320365,105040.0,105030.0,0.006646]
[1748794090455,0.00496211,105050.0,105030.0,0.04592906]
[1748794090670,0.0028,105060.0,105050.0,0.21894226]
[1748794090880,0.0028,105060.0,105050.0,0.22198957]
[1748794091090,0.02183573,105060.0,105050.0,0.19343284]
[1748794091301,0.0028,105060.0,105050.0,0.21247111]
[1748794091511,0.03135346,105060.0,105050.0,0.20310711]
[1748794091753,0.03135464,105060.0,105050.0,0.00304731]
[1748794091988,0.51734365,105060.0,105050.0,0.00304731]
[1748794092501,0.51734365,105060.0,105050.0,0.00542685]
[1748794092712,0.01904,105040.0,105030.0,0.10552857]
[1748794092946,0.16521294,105040.0,105030.0,0.10857466]
[1748794093187,0.18425294,105040.0,105030.0,0.10857466]
[1748794093413,0.28133303,105040.0,105030.0,0.00304609]
[1748794093648,0.28133303,105040.0,105030.0,0.01255405]
[1748794093888,0.19038553,105050.0,105030.0,0.2220303]
[1748794094116,0.31600337,105040.0,105030.0,0.20535577]
[1748794094328,0.30648365,105040.0,105030.0,0.01955405]
[1748794094551,0.30648365,105040.0,105030.0,0.01242602]
[1748794094819,0.30648365,105040.0,105030.0,0.00542602]
[1748794095026,0.30648365,105040.0,105030.0,0.01542602]
[1748794095232,0.19992365,105040.0,105030.0,0.01304609]
[1748794095437,0.30648365,105040.0,105030.0,0.01304609]
[1748794096066,0.2144645,105040.0,105030.0,0.01304609]
[1748794096279,0.3210245,105040.0,105030.0,0.01304609]
[1748794096942,0.3210245,105040.0,105030.0,0.00804609]
[1748794097142,0.3210245,105040.0,105030.0,0.01104609]
[1748794097354,0.3210245,105040.0,105030.0,0.00604609]
[1748794097577,0.3210245,105040.0,105030.0,0.00804609]
[1748794097803,0.3210245,105040.0,105030.0,0.00504609]
[1748794098033,0.3210245,105040.0,105030.0,0.00704609]
[1748794098706,0.3210245,105040.0,105030.0,0.0070465]
[1748794099115,0.2144645,105040.0,105030.0,0.0070465]
[1748794099313,0.28675154,105040.0,105030.0,0.0070465]
[1748794099653,0.65785154,105040.0,105030.0,0.0070465]
[1748794099857,0.75370584,105040.0,105030.0,0.01178055]
[1748794100066,0.64714584,105040.0,105030.0,0.01178055]
[1748794100272,1.07758584,105040.0,105030.0,0.01178055]
[1748794102638,0.98149154,105040.0,105030.0,0.01178055]
[1748794103040,0.98153154,105040.0,105030.0,0.01178055]
[1748794103244,0.55129154,105040.0,105030.0,0.01178085]
[1748794103423,0.98157154,105040.0,105030.0,0.01178085]
[1748794103630,0.98177154,105040.0,105030.0,0.01178085]
[1748794103908,0.55129154,105040.0,105030.0,0.01178079]
[1748794104126,0.98169154,105040.0,105030.0,0.01178079]
[1748794104426,0.98169154,105040.0,105030.0,0.00704674]
[1748794107487,0.98169154,105040.0,105030.0,0.00704672]
[1748794108357,0.55129154,105040.0,105030.0,0.00704672]
[1748794108566,0.9580811,105040.0,105030.0,0.00704672]
[1748794111632,1.0539354,105040.0,105030.0,0.00704672]
[1748794111834,1.0539354,105040.0,105030.0,0.00704681]
[1748794112440,6.10889859,105040.0,105030.0,0.00704681]
[1748794112619,6.10889859,105040.0,105030.0,0.01182329]
[1748794113431,6.10889859,105040.0,105030.0,0.00782329]
[1748794113630,6.10889859,105040.0,105030.0,0.01141325]
[1748794113980,6.10889859,105040.0,105030.0,0.01241325]
[1748794114388,6.10889859,105040.0,105030.0,0.00404681]
[1748794115763,5.67925859,105040.0,105030.0,0.00404681]
[1748794115965,6.10913859,105040.0,105030.0,0.00404733]
[1748794116833,5.67925859,105040.0,105030.0,0.00404733]
[1748794117043,6.10929859,105040.0,105030.0,0.00404733]
[1748794117467,5.67925859,105040.0,105030.0,0.01614203]
[1748794117680,6.10929859,105040.0,105030.0,0.01614203]
[1748794117884,0.73577859,105040.0,105030.0,0.01614203]
[1748794118149,1.05913859,105040.0,105030.0,0.01614203]
[1748794118637,1.00200544,105040.0,105030.0,0.00404733]
[1748794120047,1.00180544,105040.0,105030.0,0.00404733]
[1748794120731,0.57212544,105040.0,105030.0,0.0040471]
[1748794120921,1.00184544,105040.0,105030.0,0.0040471]
[1748794121166,0.57212544,105040.0,105030.0,0.0040471]
[1748794121376,1.00184544,105040.0,105030.0,0.0040471]
[1748794121823,0.67864544,105040.0,105030.0,0.0040471]
[1748794122015,0.67368225,105040.0,105030.0,0.0040471]
[1748794122660,0.67368225,105040.0,105030.0,0.01068467]
[1748794123497,5.77699551,105040.0,105030.0,0.0040471]
[1748794124341,5.67047551,105040.0,105030.0,0.0040471]
[1748794124551,6.10147551,105040.0,105030.0,0.0040471]
[1748794124976,6.10147551,105040.0,105030.0,0.001]
[1748794125180,6.10147551,105040.0,105030.0,0.00404702]
[1748794125599,6.10643847,105040.0,105030.0,0.00404704]
[1748794129629,6.23402685,105040.0,105030.0,0.00404704]
[1748794131933,0.01904516,105010.0,105000.0,0.0120947]
[1748794132151,0.01904516,105010.0,104980.0,0.0120947]
[1748794132152,0.00952453,104990.0,104980.0,0.0120947]
[1748794132360,0.20001886,104990.0,104980.0,0.01874986]
[1748794132570,0.20001886,104990.0,104980.0,0.00665516]
[1748794133196,0.20001886,104990.0,104970.0,0.2216779]
[1748794133197,0.19051247,104980.0,104970.0,0.2216779]
[1748794133406,0.19051247,104980.0,104970.0,0.31496366]
[1748794133407,0.20956289,104980.0,104970.0,0.31496366]
[1748794133613,0.22861331,104980.0,104970.0,0.34323431]
[1748794133817,0.20956344,104980.0,104970.0,0.01874458]
[1748794134028,0.20956344,104980.0,104970.0,0.017899]
[1748794134701,0.20956344,104980.0,104970.0,0.01789522]
[1748794134921,0.20956344,104980.0,104970.0,0.01824354]
[1748794135134,0.20956344,104980.0,104970.0,0.02489028]
[1748794135310,0.20956344,104980.0,104970.0,0.02489031]
[1748794135543,0.20956344,104980.0,104970.0,0.03089035]
[1748794135780,0.20956344,104980.0,104970.0,0.04041688]
[1748794135988,0.21005121,104980.0,104970.0,0.02490777]
[1748794136190,0.20052586,104980.0,104970.0,0.24047394]
[1748794136406,0.20052586,104980.0,104970.0,0.2387566]
[1748794136595,0.20052586,104980.0,104970.0,0.22923035]
[1748794136839,0.20052586,104980.0,104970.0,0.23875669]
[1748794137041,0.20052586,104980.0,104970.0,0.23875308]
[1748794137251,0.20052586,104980.0,104970.0,0.23875309]
[1748794137467,0.20052586,104980.0,104970.0,0.2387531]
[1748794137666,0.20052586,104980.0,104970.0,0.23875309]
[1748794137917,0.01001284,104980.0,104970.0,0.35365945]
[1748794138133,0.02906263,104980.0,104970.0,0.35365945]
[1748794138358,0.20001886,104990.0,104970.0,0.35365863]
[1748794138575,0.20001886,104990.0,104980.0,0.00238112]
[1748794138785,0.20001886,104990.0,104980.0,0.00902195]
[1748794138993,0.20001886,104990.0,104980.0,0.19953442]
[1748794139224,0.20001886,104990.0,104980.0,0.200038]
[1748794139439,0.19047619,105000.0,104980.0,0.20956289]
[1748794139652,0.0285735,104990.0,104980.0,0.31494273]
[1748794139864,0.03809776,104990.0,104980.0,0.33110795]
[1748794140294,0.04762157,104990.0,104980.0,0.34063293]
[1748794140515,0.0476222,104990.0,104980.0,0.34563293]
[1748794140723,0.04762265,104990.0,104980.0,0.33624853]
[1748794140929,0.03809794,104990.0,104980.0,0.3362495]
[1748794141108,0.04762265,104990.0,104980.0,0.3317244]
[1748794141339,0.01904834,104990.0,104980.0,0.33172434]
[1748794141547,0.20952352,105000.0,104990.0,0.20954348]
[1748794141791,0.20952352,105000.0,104990.0,0.20665972]
[1748794141993,0.20952352,105000.0,104990.0,0.00664068]
[1748794142644,0.19999999,105000.0,104990.0,0.0066418]
[1748794142860,0.19999999,105000.0,104990.0,0.00664183]
[1748794143094,0.19999999,105000.0,104990.0,0.00664117]
[1748794143306,0.19999999,105000.0,104980.0,0.32960783]
[1748794143535,0.19999999,105000.0,104990.0,0.00784999]
[1748794143925,0.19999999,105000.0,104990.0,0.01753918]
[1748794144641,0.19999999,105000.0,104990.0,0.21755814]
[1748794144866,0.19999999,105000.0,104990.0,0.21091629]
[1748794145086,0.19999999,105000.0,104990.0,0.22419914]
[1748794145293,0.19999999,105000.0,104990.0,0.21755777]
[1748794145503,0.19999999,105000.0,104990.0,0.01632451]
[1748794145720,0.19047619,105000.0,104990.0,0.01632451]
[1748794145927,0.19047619,105000.0,104990.0,0.21634355]
[1748794146160,0.19047619,105000.0,104990.0,0.01932451]
[1748794146989,0.19047619,105000.0,104990.0,0.21934346]
[1748794147195,0.19047619,105000.0,104990.0,0.21934355]
[1748794147403,0.19047619,105000.0,104990.0,0.20981884]
[1748794147619,0.19047619,105000.0,104990.0,0.21645893]
[1748794147829,0.19047619,105000.0,104990.0,0.01932451]
[1748794149103,0.19047619,105000.0,104990.0,0.21934355]
[1748794149587,0.19047619,105000.0,104990.0,0.20981884]
[1748794149791,0.19047619,105000.0,104990.0,0.01927966]
[1748794150016,0.19047619,105000.0,104990.0,0.01932381]
[1748794150236,0.19047619,105000.0,104990.0,0.02596188]
[1748794150453,0.29924128,105000.0,104990.0,0.01932381]
[1748794150673,0.31378213,105000.0,104990.0,0.01568869]
[1748794151135,0.65378213,105000.0,104990.0,0.01568869]
[1748794151338,0.65378213,105000.0,104990.0,0.01264134]
[1748794152380,0.57761704,105000.0,104990.0,0.01268918]
[1748794152587,0.57761704,105000.0,104990.0,0.01468918]
[1748794152788,0.57761704,105000.0,104990.0,0.01168918]
[1748794153377,0.57761704,105000.0,104990.0,0.01368918]
[1748794153611,0.90001704,105000.0,104990.0,0.01368918]
[1748794154453,0.90001704,105000.0,104990.0,0.01368917]
[1748794158681,0.90001704,105000.0,104990.0,0.01368916]
[1748794159494,1.00621704,105000.0,104990.0,0.01368916]
[1748794162095,6.05621704,105000.0,104990.0,0.01368916]
[1748794162302,6.06118194,105000.0,104990.0,0.01064134]
[1748794162515,6.47258194,105000.0,104990.0,0.01064134]
[1748794162927,6.04398194,105000.0,104990.0,0.01064134]
[1748794163148,6.47278194,105000.0,104990.0,0.00864134]
[1748794163373,6.47378194,105000.0,104990.0,0.00864134]
[1748794163580,6.15218194,105000.0,104990.0,0.00664134]
[1748794163797,6.47486194,105000.0,104990.0,0.00664134]
[1748794166661,6.47530194,105000.0,104990.0,0.00664134]
[1748794174475,6.15318194,105000.0,104990.0,0.00664134]
[1748794174698,6.47338194,105000.0,104990.0,0.00664134]
[1748794175160,6.04598194,105000.0,104990.0,0.00664134]
[1748794175364,6.47322194,105000.0,104990.0,0.00664134]
[1748794176197,6.04598194,105000.0,104990.0,0.00664134]
[1748794176405,6.47290194,105000.0,104990.0,0.00664134]
[1748794176610,6.15318194,105000.0,104990.0,0.00664134]
[1748794176824,6.47282194,105000.0,104990.0,0.00664134]
[1748794178634,0.002,105000.0,104990.0,0.22875685]
[1748794178851,0.002,105000.0,104990.0,0.77986597]
[1748794179053,0.002,105000.0,104990.0,0.76958012]
[1748794179247,0.002,105000.0,104990.0,0.77622341]
[1748794179448,0.002,105000.0,104990.0,0.77621302]
[1748794179680,0.001,105000.0,104990.0,0.77621278]
[1748794179893,0.01052299,105000.0,104990.0,0.34176825]
[1748794180233,0.001,105000.0,104990.0,0.77721277]
[1748794180479,0.001,105000.0,104990.0,0.77720756]
[1748794180700,0.03809032,105010.0,105000.0,0.1999999]
[1748794180924,0.02856751,105010.0,105000.0,0.31400761]
[1748794181147,0.01904479,105010.0,105000.0,0.32353108]
[1748794181447,0.02856751,105010.0,105000.0,0.32353113]
[1748794181671,0.02856751,105010.0,105000.0,0.3377329]
[1748794181672,0.00952217,105010.0,105000.0,0.3377329]
[1748794181882,0.0285589,105040.0,105030.0,0.1904063]
[1748794182099,0.0285589,105040.0,105030.0,0.74379367]
[1748794182100,0.01903899,105040.0,105030.0,0.74379367]
[1748794182286,0.01903899,105040.0,105030.0,0.31197824]
[1748794182287,0.0285589,105040.0,105030.0,0.31197824]
[1748794182525,0.03807908,105040.0,105030.0,0.2988286]
[1748794182729,0.22848273,105040.0,105030.0,0.28930752]
[1748794183372,0.21896337,105040.0,105030.0,0.28930752]
[1748794183551,0.21896337,105040.0,105030.0,0.289323]
[1748794183552,0.20944374,105040.0,105030.0,0.289323]
[1748794183793,0.01904009,105040.0,105030.0,0.29884408]
[1748794184001,0.01904009,105040.0,105030.0,0.289323]
[1748794184430,0.02855963,105040.0,105030.0,0.31136507]
[1748794184651,0.01231809,105060.0,105050.0,0.19038553]
[1748794184854,0.22172149,105060.0,105050.0,0.28623983]
[1748794185058,0.56172149,105060.0,105050.0,0.28623983]
[1748794185261,0.55220367,105060.0,105050.0,0.28623983]
[1748794185705,0.02183627,105060.0,105050.0,0.28623983]
[1748794185919,0.02283627,105060.0,105050.0,0.3644676]
[1748794186138,0.02283627,105060.0,105050.0,0.37398669]
[1748794186349,0.03235454,105060.0,105050.0,0.3644676]
[1748794186573,0.0038,105060.0,105050.0,0.38350515]
[1748794186812,0.01331755,105060.0,105050.0,0.38350515]
[1748794187034,0.02283519,105060.0,105050.0,0.38350515]
[1748794187464,0.03235301,105060.0,105050.0,0.38350515]
[1748794187735,0.01331755,105060.0,105050.0,0.3507693]
[1748794187950,0.01331755,105060.0,105050.0,0.31784224]
[1748794188130,0.01331764,105060.0,105050.0,0.31784224]
[1748794188383,0.02283546,105060.0,105050.0,0.31784224]
[1748794188592,0.02274787,105060.0,105050.0,0.31784224]
[1748794188806,0.02274787,105060.0,105050.0,0.79164938]
[1748794188807,0.00371241,105060.0,105050.0,0.79164938]
[1748794189022,0.00371241,105060.0,105050.0,0.82438523]
[1748794189239,0.00371241,105060.0,105050.0,0.75924265]
[1748794189453,0.00371241,105060.0,105050.0,1.14527412]
[1748794189664,0.00371241,105060.0,105050.0,1.1452426]
[1748794189877,0.00371241,105060.0,105050.0,1.13865187]
[1748794190089,0.00371241,105060.0,105050.0,1.14524247]
[1748794190284,0.02179104,105100.0,105090.0,0.02854586]
[1748794190543,0.00951013,105150.0,105140.0,0.19022256]
[1748794190752,0.00951013,105150.0,105130.0,0.05]
[1748794190753,0.20924435,105140.0,105130.0,0.05]
[1748794191608,0.03804331,105140.0,105130.0,0.28219658]
[1748794191851,0.01902125,105140.0,105130.0,0.3012201]
[1748794192065,0.1997145,105150.0,105140.0,0.05]
[1748794192281,0.1997335,105140.0,105130.0,0.053]
[1748794192488,0.1997335,105140.0,105130.0,0.1518543]
[1748794192915,0.20924435,105140.0,105130.0,0.1518543]
[1748794193136,0.01902179,105140.0,105130.0,0.36111874]
[1748794193351,0.20924462,105140.0,105130.0,0.1518543]
[1748794193569,0.20924462,105140.0,105130.0,0.1488543]
[1748794193795,0.25478547,105140.0,105130.0,0.053]
[1748794194052,0.58024462,105140.0,105130.0,0.053]
[1748794194271,0.54924462,105140.0,105130.0,0.053]
[1748794194711,0.57576341,105140.0,105110.0,0.43145298]
[1748794194927,0.02853708,105120.0,105110.0,0.68124349]
[1748794195140,0.21877611,105130.0,105120.0,0.05]
[1748794195386,0.20926444,105130.0,105120.0,0.1458543]
[1748794195606,0.19972773,105150.0,105140.0,0.05]
[1748794195822,0.19972773,105150.0,105140.0,0.1458543]
[1748794196258,0.02852985,105150.0,105140.0,0.36600475]
[1748794196481,0.20551936,105170.0,105160.0,0.05]
[1748794196943,1.05136683,105180.0,105160.0,0.05]
[1748794196944,0.00584825,105200.0,105180.0,0.19015021]
[1748794197157,0.01901095,105200.0,105190.0,0.05237656]
[1748794197373,0.22445289,105220.0,105200.0,0.05]
[1748794197374,0.2091082,105210.0,105200.0,0.05]
[1748794197591,0.2091082,105210.0,105200.0,0.05237628]
[1748794197831,0.2041082,105210.0,105200.0,0.14823058]
[1748794198048,0.2041082,105210.0,105200.0,0.1458543]
[1748794198723,0.2041082,105210.0,105200.0,0.17328206]
[1748794198962,0.0030877,105230.0,105220.0,0.20461878]
[1748794199178,0.0030877,105230.0,105220.0,0.06454085]
[1748794199179,0.20264974,105230.0,105220.0,0.06454085]
[1748794199380,0.20264974,105230.0,105220.0,0.1458543]
[1748794199381,0.32115291,105230.0,105220.0,0.1458543]
[1748794199600,0.35345291,105230.0,105220.0,0.0958543]
[1748794200020,1.12287376,105230.0,105220.0,0.1458543]
[1748794200233,0.19958164,105220.0,105210.0,0.05]
[1748794200411,0.19958164,105220.0,105210.0,0.1458543]
[1748794200654,0.21412249,105220.0,105210.0,0.1458543]
[1748794200868,0.19958164,105220.0,105210.0,0.1458543]
[1748794202346,0.23022249,105220.0,105210.0,0.051]
[1748794202556,0.58642249,105220.0,105210.0,0.001]
[1748794203733,0.58642249,105220.0,105210.0,0.052]
[1748794204173,0.58642249,105220.0,105210.0,0.051]
[1748794204393,0.58642249,105220.0,105210.0,0.05]
[1748794204614,0.20916459,105180.0,105170.0,0.46616509]
[1748794204830,0.20916459,105180.0,105170.0,0.22201939]